[Event "*** Titled Tuesday Blitz"]
[Site "Chess.com"]
[Date "2021.04.06"]
[Round "9"]
[White "anasta10"]
[Black "Chuchofrio1"]
[Result "1-0"]
[WhiteElo "2536"]
[BlackElo "2381"]
[TimeControl "180+1"]
[EndTime "11:46:11 PDT"]
[Termination "anasta10 won by checkmate"]

1. d4 {[%clk 0:03:00.9]} 1... Nf6 {[%clk 0:02:59.2]} 2. c4 {[%clk 0:03:00.1]}
2... g6 {[%clk 0:02:58.8]} 3. Nc3 {[%clk 0:02:58.3]} 3... Bg7 {[%clk 0:02:58.1]}
4. e4 {[%clk 0:02:58.7]} 4... O-O {[%clk 0:02:57.1]} 5. Bd3 {[%clk 0:02:57.7]}
5... d6 {[%clk 0:02:56.9]} 6. Nge2 {[%clk 0:02:58]} 6... e5 {[%clk 0:02:56.4]}
7. d5 {[%clk 0:02:57.7]} 7... a5 {[%clk 0:02:53]} 8. O-O {[%clk 0:02:57.3]} 8...
Na6 {[%clk 0:02:52]} 9. Bc2 {[%clk 0:02:56.8]} 9... Ne8 {[%clk 0:02:47.7]} 10.
Kh1 {[%clk 0:02:55.7]} 10... f5 {[%clk 0:02:21.9]} 11. exf5 {[%clk 0:02:56.6]}
11... Bxf5 {[%clk 0:02:22.1]} 12. Bxf5 {[%clk 0:02:55.4]} 12... gxf5 {[%clk
0:02:23]} 13. f4 {[%clk 0:02:55.3]} 13... Nc5 {[%clk 0:02:18.8]} 14. Be3 {[%clk
0:02:53.6]} 14... Nd7 {[%clk 0:02:15.7]} 15. Qe1 {[%clk 0:02:51.2]} 15... Kh8
{[%clk 0:02:06.6]} 16. h3 {[%clk 0:02:43.4]} 16... Rg8 {[%clk 0:01:55.3]} 17.
fxe5 {[%clk 0:02:36.2]} 17... Nxe5 {[%clk 0:01:54]} 18. Rxf5 {[%clk 0:02:34]}
18... Nxc4 {[%clk 0:01:52.6]} 19. Bd4 {[%clk 0:02:34.1]} 19... Ne5 {[%clk
0:01:50.7]} 20. Nf4 {[%clk 0:02:21.2]} 20... c5 {[%clk 0:01:40.3]} 21. dxc6
{[%clk 0:02:20.3]} 21... bxc6 {[%clk 0:01:23.7]} 22. Ne6 {[%clk 0:02:03.8]}
22... Qd7 {[%clk 0:01:16.4]} 23. Nxg7 {[%clk 0:02:01.9]} 23... Qxg7 {[%clk
0:01:17.3]} 24. Qe2 {[%clk 0:01:47.6]} 24... Nc7 {[%clk 0:01:04.2]} 25. Rxe5
{[%clk 0:01:26]} 25... c5 {[%clk 0:00:55.8]} 26. Re7 {[%clk 0:01:24.2]} 26...
Qxd4 {[%clk 0:00:53.9]} 27. Rxc7 {[%clk 0:01:24.2]} 27... Rae8 {[%clk
0:00:52.8]} 28. Qc2 {[%clk 0:01:09.9]} 28... Qh4 {[%clk 0:00:47.5]} 29. Rf1
{[%clk 0:00:43.4]} 29... Re1 {[%clk 0:00:38.9]} 30. Rxh7+ {[%clk 0:00:37]} 30...
Qxh7 {[%clk 0:00:35.9]} 31. Qxh7+ {[%clk 0:00:37.9]} 31... Kxh7 {[%clk
0:00:36.8]} 32. Rxe1 {[%clk 0:00:38.5]} 32... Rb8 {[%clk 0:00:35.7]} 33. Re2
{[%clk 0:00:38.7]} 33... Rf8 {[%clk 0:00:30]} 34. Kh2 {[%clk 0:00:39]} 34... Kg6
{[%clk 0:00:30.1]} 35. Rd2 {[%clk 0:00:39.3]} 35... Rd8 {[%clk 0:00:28.6]} 36.
Kg3 {[%clk 0:00:37.7]} 36... Kf5 {[%clk 0:00:27.7]} 37. Kf3 {[%clk 0:00:37.9]}
37... Ke5 {[%clk 0:00:26.3]} 38. Ke2 {[%clk 0:00:37.9]} 38... d5 {[%clk
0:00:25.6]} 39. Rxd5+ {[%clk 0:00:38]} 39... Rxd5 {[%clk 0:00:24.5]} 40. Nxd5
{[%clk 0:00:38.9]} 40... Kxd5 {[%clk 0:00:25.2]} 41. Kd3 {[%clk 0:00:39.8]}
41... c4+ {[%clk 0:00:25.5]} 42. Kc3 {[%clk 0:00:40.2]} 42... Kc5 {[%clk
0:00:26.4]} 43. g4 {[%clk 0:00:40.7]} 43... Kd5 {[%clk 0:00:26.6]} 44. g5 {[%clk
0:00:41.2]} 44... Ke5 {[%clk 0:00:27.5]} 45. Kxc4 {[%clk 0:00:41.8]} 45... Kf5
{[%clk 0:00:28.4]} 46. a4 {[%clk 0:00:42.3]} 46... Kxg5 {[%clk 0:00:29.3]} 47.
b4 {[%clk 0:00:42.9]} 47... Kh4 {[%clk 0:00:30.2]} 48. bxa5 {[%clk 0:00:41.6]}
48... Kxh3 {[%clk 0:00:31.1]} 49. a6 {[%clk 0:00:42.5]} 49... Kg4 {[%clk
0:00:32]} 50. a7 {[%clk 0:00:43.2]} 50... Kf5 {[%clk 0:00:32.9]} 51. a8=Q {[%clk
0:00:43.5]} 51... Ke6 {[%clk 0:00:33.8]} 52. Qd5+ {[%clk 0:00:43.5]} 52... Ke7
{[%clk 0:00:33.9]} 53. a5 {[%clk 0:00:44.4]} 53... Ke8 {[%clk 0:00:30]} 54. a6
{[%clk 0:00:45.3]} 54... Kf8 {[%clk 0:00:30.2]} 55. a7 {[%clk 0:00:45.4]} 55...
Ke7 {[%clk 0:00:31.1]} 56. Kd4 {[%clk 0:00:42.1]} 56... Kf6 {[%clk 0:00:30.5]}
57. Ke4 {[%clk 0:00:42.6]} 57... Ke7 {[%clk 0:00:30.1]} 58. Ke5 {[%clk
0:00:42.2]} 58... Kf8 {[%clk 0:00:28.9]} 59. a8=Q+ {[%clk 0:00:42.3]} 59... Kg7
{[%clk 0:00:29.8]} 60. Qab7+ {[%clk 0:00:41.1]} 60... Kh6 {[%clk 0:00:30.7]} 61.
Qe6+ {[%clk 0:00:39]} 61... Kg5 {[%clk 0:00:30.6]} 62. Qg7+ {[%clk 0:00:38]}
62... Kh4 {[%clk 0:00:27.8]} 63. Qeh6# {[%clk 0:00:38.3]} 1-0

[Event "*** Titled Tuesday Blitz"]
[Site "Chess.com"]
[Date "2021.04.06"]
[Round "9"]
[White "Camels1981"]
[Black "ehrenfeld"]
[Result "1-0"]
[WhiteElo "2402"]
[BlackElo "2523"]
[TimeControl "180+1"]
[EndTime "11:46:14 PDT"]
[Termination "Camels1981 won by resignation"]

1. e4 {[%clk 0:03:00.9]} 1... e5 {[%clk 0:02:46]} 2. Nf3 {[%clk 0:02:48.7]} 2...
Nc6 {[%clk 0:02:45.4]} 3. Bc4 {[%clk 0:02:48.6]} 3... Nf6 {[%clk 0:02:44.8]} 4.
d3 {[%clk 0:02:48.1]} 4... Bc5 {[%clk 0:02:42.9]} 5. O-O {[%clk 0:02:47.2]} 5...
d6 {[%clk 0:02:42.7]} 6. h3 {[%clk 0:02:45.6]} 6... a6 {[%clk 0:02:41.9]} 7. c3
{[%clk 0:02:45.2]} 7... Ba7 {[%clk 0:02:40.8]} 8. Bb3 {[%clk 0:02:43.7]} 8... h6
{[%clk 0:02:40.3]} 9. Nbd2 {[%clk 0:02:43]} 9... Nh5 {[%clk 0:02:36.3]} 10. Nxe5
{[%clk 0:02:32.1]} 10... Nxe5 {[%clk 0:02:29.5]} 11. Qxh5 {[%clk 0:02:31.3]}
11... Ng6 {[%clk 0:02:02.7]} 12. d4 {[%clk 0:02:16.8]} 12... Bd7 {[%clk
0:01:59.8]} 13. f4 {[%clk 0:02:05.8]} 13... Qh4 {[%clk 0:01:52.3]} 14. Qxh4
{[%clk 0:02:00.9]} 14... Nxh4 {[%clk 0:01:51.9]} 15. f5 {[%clk 0:02:01.8]} 15...
g6 {[%clk 0:01:42.6]} 16. g3 {[%clk 0:01:37.4]} 16... gxf5 {[%clk 0:01:38.9]}
17. gxh4 {[%clk 0:01:37.4]} 17... O-O-O {[%clk 0:01:32.3]} 18. exf5 {[%clk
0:01:37.2]} 18... Rhg8+ {[%clk 0:01:31.5]} 19. Kh2 {[%clk 0:01:33.3]} 19... Rde8
{[%clk 0:01:31.3]} 20. Rf2 {[%clk 0:01:23.9]} 20... d5 {[%clk 0:01:27]} 21. Nf3
{[%clk 0:01:00]} 21... c6 {[%clk 0:01:26]} 22. Bf4 {[%clk 0:00:59.2]} 22... f6
{[%clk 0:01:20.5]} 23. Re1 {[%clk 0:00:56.4]} 23... Bxf5 {[%clk 0:01:19.4]} 24.
Bc2 {[%clk 0:00:41.3]} 24... Be4 {[%clk 0:01:13.4]} 25. Bxe4 {[%clk 0:00:40.3]}
25... dxe4 {[%clk 0:01:12.7]} 26. Nd2 {[%clk 0:00:39.7]} 26... f5 {[%clk
0:01:11.5]} 27. Nc4 {[%clk 0:00:30.8]} 27... Kd7 {[%clk 0:01:04.8]} 28. Ne5+
{[%clk 0:00:20.2]} 28... Ke6 {[%clk 0:01:04.1]} 29. Rg2 {[%clk 0:00:19.6]} 29...
Rxg2+ {[%clk 0:00:58.1]} 30. Kxg2 {[%clk 0:00:20.5]} 30... c5 {[%clk 0:00:58.6]}
31. d5+ {[%clk 0:00:12.9]} 31... Kxd5 {[%clk 0:00:56.5]} 32. Rd1+ {[%clk
0:00:12.9]} 32... Ke6 {[%clk 0:00:56.6]} 33. Nc4 {[%clk 0:00:09.9]} 33... b5
{[%clk 0:00:44.6]} 34. Rd6+ {[%clk 0:00:08.1]} 34... Ke7 {[%clk 0:00:44]} 35.
Rxa6 {[%clk 0:00:08]} 35... Bb8 {[%clk 0:00:42]} 36. Bxb8 {[%clk 0:00:06.7]}
36... Rg8+ {[%clk 0:00:42]} 37. Kf2 {[%clk 0:00:06.2]} 37... Rxb8 {[%clk
0:00:41.5]} 38. Ne5 {[%clk 0:00:06.5]} 38... Rg8 {[%clk 0:00:33.6]} 39. Ng6+
{[%clk 0:00:06.3]} 39... Kf7 {[%clk 0:00:30.3]} 40. h5 {[%clk 0:00:07.2]} 40...
Rd8 {[%clk 0:00:28.6]} 41. Ke3 {[%clk 0:00:06.9]} 41... Rd3+ {[%clk 0:00:27.8]}
42. Kf4 {[%clk 0:00:06.9]} 42... Rf3+ {[%clk 0:00:27.3]} 43. Ke5 {[%clk
0:00:07]} 43... e3 {[%clk 0:00:27.5]} 44. Ra7+ {[%clk 0:00:06.9]} 44... Ke8
{[%clk 0:00:25.5]} 45. Ke6 {[%clk 0:00:05.5]} 45... Kd8 {[%clk 0:00:24.6]} 46.
Kd6 {[%clk 0:00:05.6]} 46... Kc8 {[%clk 0:00:22.7]} 47. Ne7+ {[%clk 0:00:04.6]}
1-0

[Event "*** Titled Tuesday Blitz"]
[Site "Chess.com"]
[Date "2021.04.06"]
[Round "9"]
[White "Forantes"]
[Black "Zmof"]
[Result "1-0"]
[WhiteElo "2356"]
[BlackElo "2219"]
[TimeControl "180+1"]
[EndTime "11:46:16 PDT"]
[Termination "Forantes won by resignation"]

1. Nf3 {[%clk 0:03:00.9]} 1... f5 {[%clk 0:02:58.1]} 2. d4 {[%clk 0:02:58.5]}
2... Nf6 {[%clk 0:02:57.7]} 3. c4 {[%clk 0:02:58.8]} 3... d6 {[%clk 0:02:57.6]}
4. Nc3 {[%clk 0:02:58.8]} 4... g6 {[%clk 0:02:58.2]} 5. b3 {[%clk 0:02:58.7]}
5... Bg7 {[%clk 0:02:58.1]} 6. Bb2 {[%clk 0:02:57.4]} 6... O-O {[%clk
0:02:58.6]} 7. e3 {[%clk 0:02:57.6]} 7... Qe8 {[%clk 0:02:58.1]} 8. Be2 {[%clk
0:02:53.2]} 8... c6 {[%clk 0:02:56.5]} 9. Qc2 {[%clk 0:02:51.5]} 9... Na6 {[%clk
0:02:55.4]} 10. a3 {[%clk 0:02:50.2]} 10... e5 {[%clk 0:02:53.8]} 11. dxe5
{[%clk 0:02:36.9]} 11... dxe5 {[%clk 0:02:53.2]} 12. b4 {[%clk 0:02:37.3]} 12...
Nc7 {[%clk 0:02:51.7]} 13. c5 {[%clk 0:02:21.5]} 13... e4 {[%clk 0:02:33.1]} 14.
Nd4 {[%clk 0:02:19.4]} 14... Kh8 {[%clk 0:02:29.1]} 15. Bc4 {[%clk 0:02:11.7]}
15... Ne6 {[%clk 0:02:26.2]} 16. Nce2 {[%clk 0:01:54.1]} 16... Nxd4 {[%clk
0:02:18]} 17. Nxd4 {[%clk 0:01:52.6]} 17... Qe7 {[%clk 0:02:15.9]} 18. O-O
{[%clk 0:01:41.9]} 18... Bd7 {[%clk 0:02:16.1]} 19. Nb3 {[%clk 0:01:30.8]} 19...
Rad8 {[%clk 0:01:54.3]} 20. Rad1 {[%clk 0:01:21.9]} 20... Bc8 {[%clk 0:01:53.5]}
21. Na5 {[%clk 0:01:09.5]} 21... Ng4 {[%clk 0:01:44.5]} 22. Bxg7+ {[%clk
0:01:08]} 22... Qxg7 {[%clk 0:01:44.2]} 23. Rxd8 {[%clk 0:00:54.7]} 23... Rxd8
{[%clk 0:01:43.3]} 24. Rd1 {[%clk 0:00:55.2]} 24... Rxd1+ {[%clk 0:01:36.7]} 25.
Qxd1 {[%clk 0:00:55.1]} 25... Qe7 {[%clk 0:01:37.2]} 26. Qd4+ {[%clk 0:00:22.2]}
26... Nf6 {[%clk 0:01:12.4]} 27. Ba2 {[%clk 0:00:16.4]} 27... h6 {[%clk
0:00:43.3]} 28. h3 {[%clk 0:00:16.3]} 28... Kh7 {[%clk 0:00:42.4]} 29. a4 {[%clk
0:00:13.7]} 29... g5 {[%clk 0:00:37.6]} 30. b5 {[%clk 0:00:13.2]} 30... cxb5
{[%clk 0:00:35]} 31. axb5 {[%clk 0:00:13.2]} 31... Kg6 {[%clk 0:00:35.6]} 32.
Nc4 {[%clk 0:00:08.9]} 32... Be6 {[%clk 0:00:33.9]} 33. Ne5+ {[%clk 0:00:09.2]}
33... Kg7 {[%clk 0:00:30.1]} 34. Bxe6 {[%clk 0:00:05.5]} 34... Qxe6 {[%clk
0:00:30.2]} 35. c6 {[%clk 0:00:06.4]} 35... bxc6 {[%clk 0:00:27.2]} 36. bxc6
{[%clk 0:00:05]} 36... Qd5 {[%clk 0:00:14.8]} 37. Qxa7+ {[%clk 0:00:04.1]} 37...
Kg8 {[%clk 0:00:09.4]} 38. Qd4 {[%clk 0:00:04.5]} 38... Qxd4 {[%clk 0:00:08.9]}
39. exd4 {[%clk 0:00:05.4]} 39... Nd5 {[%clk 0:00:09.5]} 40. g4 {[%clk
0:00:04.7]} 40... fxg4 {[%clk 0:00:08.9]} 41. Nxg4 {[%clk 0:00:05.1]} 41... h5
{[%clk 0:00:08.9]} 42. Nf6+ {[%clk 0:00:04]} 42... Nxf6 {[%clk 0:00:07]} 43. c7
{[%clk 0:00:04.5]} 43... e3 {[%clk 0:00:06.9]} 44. c8=Q+ {[%clk 0:00:04.5]}
44... Kg7 {[%clk 0:00:07.6]} 45. fxe3 {[%clk 0:00:05.1]} 1-0

[Event "*** Titled Tuesday Blitz"]
[Site "Chess.com"]
[Date "2021.04.06"]
[Round "9"]
[White "maximnovik"]
[Black "Tekushka"]
[Result "1-0"]
[WhiteElo "2562"]
[BlackElo "2402"]
[TimeControl "180+1"]
[EndTime "11:46:17 PDT"]
[Termination "maximnovik won on time"]

1. d4 {[%clk 0:02:58.1]} 1... Nf6 {[%clk 0:02:59]} 2. Bg5 {[%clk 0:02:58.1]}
2... d5 {[%clk 0:02:58.6]} 3. e3 {[%clk 0:02:55.9]} 3... Ne4 {[%clk 0:02:55.8]}
4. Bh4 {[%clk 0:02:54.2]} 4... c5 {[%clk 0:02:55.7]} 5. Nd2 {[%clk 0:02:50.9]}
5... Nxd2 {[%clk 0:02:22.5]} 6. Qxd2 {[%clk 0:02:50.2]} 6... cxd4 {[%clk
0:02:22.2]} 7. exd4 {[%clk 0:02:49.6]} 7... Nc6 {[%clk 0:02:18.3]} 8. O-O-O
{[%clk 0:02:44.9]} 8... Bf5 {[%clk 0:02:16]} 9. Nf3 {[%clk 0:02:20.9]} 9... Qb6
{[%clk 0:02:14.3]} 10. Bd3 {[%clk 0:02:12.7]} 10... Bxd3 {[%clk 0:02:08.7]} 11.
Qxd3 {[%clk 0:02:12.1]} 11... e6 {[%clk 0:02:01.1]} 12. Kb1 {[%clk 0:02:11.4]}
12... Qa5 {[%clk 0:01:51.2]} 13. Rhe1 {[%clk 0:02:08.5]} 13... Bd6 {[%clk
0:01:26.7]} 14. Ng5 {[%clk 0:02:07]} 14... Nb4 {[%clk 0:01:18]} 15. Qb3 {[%clk
0:02:05.6]} 15... h6 {[%clk 0:01:04.5]} 16. Nxe6 {[%clk 0:01:55.5]} 16... fxe6
{[%clk 0:01:03.7]} 17. Rxe6+ {[%clk 0:01:53.6]} 17... Kd7 {[%clk 0:01:04.3]} 18.
Rxd6+ {[%clk 0:01:24.2]} 18... Kxd6 {[%clk 0:01:03.7]} 19. a3 {[%clk 0:01:23.6]}
19... Na6 {[%clk 0:00:42.9]} 20. Qxb7 {[%clk 0:01:21.8]} 20... Nc7 {[%clk
0:00:34.5]} 21. Bg3+ {[%clk 0:00:46.8]} 21... Kd7 {[%clk 0:00:33.9]} 22. Bxc7
{[%clk 0:00:42.4]} 22... Qxc7 {[%clk 0:00:33.3]} 23. Qxd5+ {[%clk 0:00:41.8]}
23... Qd6 {[%clk 0:00:33.5]} 24. Qb7+ {[%clk 0:00:40.3]} 24... Qc7 {[%clk
0:00:33.4]} 25. Qe4 {[%clk 0:00:34.3]} 25... Rae8 {[%clk 0:00:30.1]} 26. Qg6
{[%clk 0:00:33.6]} 26... Re7 {[%clk 0:00:25.5]} 27. d5 {[%clk 0:00:33.2]} 27...
Qd6 {[%clk 0:00:25.6]} 28. Qf5+ {[%clk 0:00:33.2]} 28... Kc7 {[%clk 0:00:16.3]}
29. Rd3 {[%clk 0:00:33.5]} 29... Rb8 {[%clk 0:00:14.6]} 30. Rc3+ {[%clk
0:00:26.3]} 30... Kb7 {[%clk 0:00:13.6]} 31. Ka2 {[%clk 0:00:17.4]} 31... Ka8
{[%clk 0:00:12.9]} 32. Rd3 {[%clk 0:00:15.9]} 32... Reb7 {[%clk 0:00:12.7]} 33.
b3 {[%clk 0:00:15.1]} 33... Qc5 {[%clk 0:00:12.4]} 34. c4 {[%clk 0:00:14]} 34...
Rxb3 {[%clk 0:00:11.4]} 35. Rxb3 {[%clk 0:00:12.4]} 35... Qxc4 {[%clk
0:00:11.8]} 36. Qd3 {[%clk 0:00:12.2]} 36... Qc5 {[%clk 0:00:04.8]} 37. Rxb8+
{[%clk 0:00:11.7]} 37... Kxb8 {[%clk 0:00:04.8]} 38. Kb2 {[%clk 0:00:10.8]}
38... Qxf2+ {[%clk 0:00:03.3]} 39. Kb3 {[%clk 0:00:10.9]} 39... Qxg2 {[%clk
0:00:03.1]} 40. d6 {[%clk 0:00:10.1]} 40... Kc8 {[%clk 0:00:02.7]} 41. Qc4+
{[%clk 0:00:10.2]} 41... Kd7 {[%clk 0:00:01.2]} 42. Qc7+ {[%clk 0:00:10.2]}
42... Ke6 {[%clk 0:00:01.3]} 43. Qe7+ {[%clk 0:00:10.3]} 1-0

[Event "*** Titled Tuesday Blitz"]
[Site "Chess.com"]
[Date "2021.04.06"]
[Round "9"]
[White "tteshan"]
[Black "Schack-Hugo"]
[Result "1-0"]
[WhiteElo "2310"]
[BlackElo "2202"]
[TimeControl "180+1"]
[EndTime "11:46:17 PDT"]
[Termination "tteshan won on time"]

1. Nf3 {[%clk 0:02:58.8]} 1... Nf6 {[%clk 0:02:59.1]} 2. b3 {[%clk 0:02:58.7]}
2... d5 {[%clk 0:02:59.2]} 3. Bb2 {[%clk 0:02:58.7]} 3... c6 {[%clk 0:02:59.7]}
4. e3 {[%clk 0:02:57.8]} 4... g6 {[%clk 0:03:00]} 5. c4 {[%clk 0:02:58.1]} 5...
Bg7 {[%clk 0:03:00.1]} 6. Be2 {[%clk 0:02:54]} 6... O-O {[%clk 0:02:58.6]} 7.
O-O {[%clk 0:02:53.5]} 7... Bg4 {[%clk 0:02:57.4]} 8. d3 {[%clk 0:02:53.6]} 8...
e6 {[%clk 0:02:56.7]} 9. Nbd2 {[%clk 0:02:53.5]} 9... Nbd7 {[%clk 0:02:56.4]}
10. h3 {[%clk 0:02:52.6]} 10... Bxf3 {[%clk 0:02:56.1]} 11. Nxf3 {[%clk
0:02:51.8]} 11... a5 {[%clk 0:02:56]} 12. Qc2 {[%clk 0:02:45.6]} 12... a4 {[%clk
0:02:52]} 13. b4 {[%clk 0:02:34.9]} 13... a3 {[%clk 0:02:22.1]} 14. Bc3 {[%clk
0:02:26.7]} 14... b5 {[%clk 0:02:08.7]} 15. c5 {[%clk 0:02:13.4]} 15... Qc7
{[%clk 0:01:59.6]} 16. Rab1 {[%clk 0:01:39.5]} 16... e5 {[%clk 0:01:50.4]} 17.
Rb3 {[%clk 0:01:33]} 17... Ra4 {[%clk 0:01:15.2]} 18. Qc1 {[%clk 0:01:27.7]}
18... Rfa8 {[%clk 0:01:14]} 19. Re1 {[%clk 0:01:20.3]} 19... h5 {[%clk
0:01:07.4]} 20. Bf1 {[%clk 0:01:18.6]} 20... Bh6 {[%clk 0:00:56.3]} 21. Qa1
{[%clk 0:01:08.5]} 21... Re8 {[%clk 0:00:51.1]} 22. Be2 {[%clk 0:00:50.4]} 22...
Qd8 {[%clk 0:00:26.8]} 23. Nxe5 {[%clk 0:00:46]} 23... Nxe5 {[%clk 0:00:24.9]}
24. Bxe5 {[%clk 0:00:46.9]} 24... Nd7 {[%clk 0:00:23.3]} 25. Bc3 {[%clk
0:00:42.2]} 25... Qh4 {[%clk 0:00:18.4]} 26. Bf1 {[%clk 0:00:34.3]} 26... Qg5
{[%clk 0:00:06.1]} 27. Rbb1 {[%clk 0:00:14.5]} 27... Qh4 {[%clk 0:00:06.1]} 28.
g3 {[%clk 0:00:13.9]} 28... Qd8 {[%clk 0:00:05.7]} 29. Bg2 {[%clk 0:00:14]}
29... Bg5 {[%clk 0:00:05.6]} 30. f4 {[%clk 0:00:13.1]} 30... Bf6 {[%clk
0:00:05.8]} 31. d4 {[%clk 0:00:12.5]} 31... Bg7 {[%clk 0:00:05.4]} 32. e4 {[%clk
0:00:12.4]} 32... dxe4 {[%clk 0:00:04.8]} 33. Bxe4 {[%clk 0:00:13.3]} 33... Qc7
{[%clk 0:00:03.9]} 34. Kg2 {[%clk 0:00:13.1]} 34... Nf6 {[%clk 0:00:03.9]} 35.
Bf3 {[%clk 0:00:13.2]} 35... Raa8 {[%clk 0:00:03.3]} 36. d5 {[%clk 0:00:11.8]}
36... cxd5 {[%clk 0:00:02.4]} 37. Bxd5 {[%clk 0:00:11.7]} 37... Nxd5 {[%clk
0:00:02.2]} 38. Bxg7 {[%clk 0:00:12.6]} 38... Qc6 {[%clk 0:00:02.6]} 39. Kh2
{[%clk 0:00:12.3]} 39... Rad8 {[%clk 0:00:01.5]} 40. Re5 {[%clk 0:00:10]} 40...
Rc8 {[%clk 0:00:01.7]} 41. Rd1 {[%clk 0:00:09.2]} 41... Rxe5 {[%clk 0:00:01.8]}
42. Qxe5 {[%clk 0:00:08.8]} 42... Re8 {[%clk 0:00:01.3]} 43. Qxd5 {[%clk
0:00:08.9]} 1-0

[Event "*** Titled Tuesday Blitz"]
[Site "Chess.com"]
[Date "2021.04.06"]
[Round "9"]
[White "Louis64"]
[Black "aljado"]
[Result "1-0"]
[WhiteElo "2254"]
[BlackElo "2115"]
[TimeControl "180+1"]
[EndTime "11:46:18 PDT"]
[Termination "Louis64 won on time"]

1. e4 {[%clk 0:01:49.9]} 1... c5 {[%clk 0:02:58.2]} 2. Nf3 {[%clk 0:01:48.2]}
2... e6 {[%clk 0:02:57.9]} 3. d4 {[%clk 0:01:48]} 3... cxd4 {[%clk 0:02:57.5]}
4. Nxd4 {[%clk 0:01:48.9]} 4... Bc5 {[%clk 0:02:56.4]} 5. Be3 {[%clk 0:01:47.8]}
5... Qb6 {[%clk 0:02:54.6]} 6. c3 {[%clk 0:01:47.9]} 6... Qxb2 {[%clk
0:02:46.1]} 7. Nd2 {[%clk 0:01:46.7]} 7... Nf6 {[%clk 0:02:18.7]} 8. Rb1 {[%clk
0:01:30.7]} 8... Qxa2 {[%clk 0:02:06.4]} 9. Bc4 {[%clk 0:01:25.8]} 9... Qa5
{[%clk 0:01:46.5]} 10. N4b3 {[%clk 0:01:11.3]} 10... Qxc3 {[%clk 0:01:40.2]} 11.
Bxc5 {[%clk 0:01:06.9]} 11... Nxe4 {[%clk 0:01:37.4]} 12. Bd4 {[%clk 0:00:53.4]}
12... Qb4 {[%clk 0:01:30.4]} 13. O-O {[%clk 0:00:49.3]} 13... Nc3 {[%clk
0:01:22.6]} 14. Bxc3 {[%clk 0:00:38.4]} 14... Qxc3 {[%clk 0:01:22.1]} 15. Rc1
{[%clk 0:00:38.9]} 15... Qf6 {[%clk 0:01:16.4]} 16. Bxe6 {[%clk 0:00:37.8]}
16... O-O {[%clk 0:01:11.9]} 17. Bd5 {[%clk 0:00:37.4]} 17... Nc6 {[%clk
0:01:10.1]} 18. Ne4 {[%clk 0:00:37.5]} 18... Qe5 {[%clk 0:01:02.8]} 19. Re1
{[%clk 0:00:36.6]} 19... Ne7 {[%clk 0:00:50.5]} 20. Nc3 {[%clk 0:00:21.2]} 20...
Qf6 {[%clk 0:00:43.5]} 21. Bf3 {[%clk 0:00:17.2]} 21... a5 {[%clk 0:00:36.4]}
22. Nd5 {[%clk 0:00:16.5]} 22... Nxd5 {[%clk 0:00:34.8]} 23. Qxd5 {[%clk
0:00:16.6]} 23... a4 {[%clk 0:00:33.6]} 24. Nd4 {[%clk 0:00:16.9]} 24... a3
{[%clk 0:00:30.8]} 25. Ra1 {[%clk 0:00:16.4]} 25... a2 {[%clk 0:00:28.8]} 26.
Red1 {[%clk 0:00:14.1]} 26... d6 {[%clk 0:00:27.3]} 27. Rxa2 {[%clk 0:00:13.1]}
27... Be6 {[%clk 0:00:21.3]} 28. Nxe6 {[%clk 0:00:13]} 28... fxe6 {[%clk
0:00:19.8]} 29. Qb3 {[%clk 0:00:13.3]} 29... Rxa2 {[%clk 0:00:18.6]} 30. Qxa2
{[%clk 0:00:13.6]} 30... d5 {[%clk 0:00:18.8]} 31. Qb3 {[%clk 0:00:12.7]} 31...
Qe7 {[%clk 0:00:18.3]} 32. Rb1 {[%clk 0:00:12.4]} 32... Rb8 {[%clk 0:00:17.6]}
33. Qb6 {[%clk 0:00:12.4]} 33... Qd7 {[%clk 0:00:12.6]} 34. g3 {[%clk
0:00:09.5]} 34... e5 {[%clk 0:00:11.4]} 35. Qc5 {[%clk 0:00:08.9]} 35... e4
{[%clk 0:00:09.8]} 36. Bg2 {[%clk 0:00:09.2]} 36... b5 {[%clk 0:00:07.9]} 37.
Rb4 {[%clk 0:00:08.2]} 37... Kf7 {[%clk 0:00:05.8]} 38. h4 {[%clk 0:00:08.2]}
38... g6 {[%clk 0:00:04.6]} 39. Kh2 {[%clk 0:00:06.2]} 39... h5 {[%clk
0:00:04.1]} 40. Bh3 {[%clk 0:00:06.4]} 40... Qd8 {[%clk 0:00:03.4]} 41. Qc6
{[%clk 0:00:04.3]} 1-0

[Event "*** Titled Tuesday Blitz"]
[Site "Chess.com"]
[Date "2021.04.06"]
[Round "9"]
[White "Cptn2"]
[Black "GMHess"]
[Result "0-1"]
[WhiteElo "2531"]
[BlackElo "2747"]
[TimeControl "180+1"]
[EndTime "11:46:19 PDT"]
[Termination "GMHess won by resignation"]

1. e4 {[%clk 0:02:54]} 1... g6 {[%clk 0:03:00.9]} 2. d4 {[%clk 0:02:52.9]} 2...
Bg7 {[%clk 0:03:01.6]} 3. Nc3 {[%clk 0:02:48.9]} 3... a6 {[%clk 0:03:01.9]} 4.
f4 {[%clk 0:02:49]} 4... d6 {[%clk 0:03:01.9]} 5. Nf3 {[%clk 0:02:49.5]} 5... b5
{[%clk 0:03:02.1]} 6. Bd3 {[%clk 0:02:47.7]} 6... Bb7 {[%clk 0:03:02.3]} 7. O-O
{[%clk 0:02:46.7]} 7... Nd7 {[%clk 0:03:01.8]} 8. f5 {[%clk 0:02:42.1]} 8... c5
{[%clk 0:02:55.6]} 9. Be3 {[%clk 0:02:25.8]} 9... Ngf6 {[%clk 0:02:52.8]} 10. h3
{[%clk 0:02:23]} 10... c4 {[%clk 0:02:49.6]} 11. e5 {[%clk 0:02:19.9]} 11...
dxe5 {[%clk 0:02:14.6]} 12. dxe5 {[%clk 0:02:20.8]} 12... Bxf3 {[%clk 0:02:08]}
13. exf6 {[%clk 0:02:01.4]} 13... Bxd1 {[%clk 0:02:05.5]} 14. fxg7 {[%clk
0:02:01.5]} 14... Rg8 {[%clk 0:02:05.5]} 15. Be4 {[%clk 0:01:59.6]} 15... Bxc2
{[%clk 0:01:23]} 16. Bxc2 {[%clk 0:01:15.1]} 16... Rxg7 {[%clk 0:01:20.3]} 17.
Rad1 {[%clk 0:01:12.9]} 17... Rc8 {[%clk 0:00:43.7]} 18. f6 {[%clk 0:00:41.1]}
18... exf6 {[%clk 0:00:33.4]} 19. Bh6 {[%clk 0:00:36.6]} 19... Kf8 {[%clk
0:00:11.7]} 20. Nd5 {[%clk 0:00:33.7]} 20... Rc6 {[%clk 0:00:09.9]} 21. Be4
{[%clk 0:00:23.8]} 21... Rd6 {[%clk 0:00:09.6]} 22. Be3 {[%clk 0:00:11.8]} 22...
f5 {[%clk 0:00:07.2]} 23. Bf3 {[%clk 0:00:11.5]} 23... f6 {[%clk 0:00:06.8]} 24.
Nf4 {[%clk 0:00:09.9]} 24... Rxd1 {[%clk 0:00:04.4]} 25. Rxd1 {[%clk 0:00:10.8]}
25... Re7 {[%clk 0:00:04.6]} 26. Bc5 {[%clk 0:00:10]} 26... Kf7 {[%clk
0:00:03.8]} 27. Bd5+ {[%clk 0:00:09.3]} 27... Ke8 {[%clk 0:00:02.7]} 28. Ne6
{[%clk 0:00:06.1]} 28... Rxe6 {[%clk 0:00:01.6]} 29. Bxe6 {[%clk 0:00:06.5]}
29... Nxc5 {[%clk 0:00:02.3]} 30. Rxd8+ {[%clk 0:00:06.1]} 30... Kxd8 {[%clk
0:00:03.2]} 31. Bg8 {[%clk 0:00:07]} 31... h6 {[%clk 0:00:03.6]} 32. Bh7 {[%clk
0:00:07.9]} 32... Ke7 {[%clk 0:00:03.8]} 33. Bxg6 {[%clk 0:00:08.4]} 33... Ke6
{[%clk 0:00:04.7]} 34. Kf2 {[%clk 0:00:08.6]} 34... Nd3+ {[%clk 0:00:04.1]} 35.
Ke3 {[%clk 0:00:09.2]} 35... Nxb2 {[%clk 0:00:05]} 36. Kf4 {[%clk 0:00:09.8]}
36... Nd3+ {[%clk 0:00:05.7]} 37. Ke3 {[%clk 0:00:09.2]} 37... Ke5 {[%clk
0:00:06.3]} 38. Bf7 {[%clk 0:00:08.8]} 38... f4+ {[%clk 0:00:06.3]} 39. Kd2
{[%clk 0:00:09.4]} 39... Kd4 {[%clk 0:00:06.8]} 40. Kc2 {[%clk 0:00:09.8]} 40...
c3 {[%clk 0:00:06.7]} 41. Bg6 {[%clk 0:00:09.2]} 41... Ne1+ {[%clk 0:00:06.9]}
42. Kd1 {[%clk 0:00:09.5]} 42... Nxg2 {[%clk 0:00:07.6]} 43. a3 {[%clk
0:00:09.5]} 43... f3 {[%clk 0:00:07.2]} 44. Kc1 {[%clk 0:00:09.9]} 44... f2
{[%clk 0:00:07.2]} 0-1